bitfinex-derivatives/quotes_ETHF0:USTF0_20251024
["timestamp","ask_amount","ask_price","bid_price","bid_amount"]
[1761325643155,0.8863789,3901.2,3901.1,1.25824335]
[1761325643341,1.2410789,3901.2,3901.1,0.72794335]
[1761325644045,1.2410789,3901.2,3901.1,0.37924335]
[1761325644244,1.2410789,3901.2,3901.1,0.00324335]
[1761325647251,10.1503789,3901.2,3901.1,1.25824335]
[1761325647659,10.5050789,3901.2,3901.1,0.72794335]
[1761325648045,1.2410789,3901.2,3901.1,0.72794335]
[1761325648253,10.5050789,3901.2,3901.1,0.72794335]
[1761325648743,10.5050789,3901.2,3901.1,3.93574335]
[1761325650856,10.5050789,3901.2,3901.1,3.21104335]
[1761325651060,10.5050789,3901.2,3901.1,0.00324335]
[1761325651358,10.5030789,3901.2,3901.1,0.37924335]
[1761325652060,10.5030789,3901.2,3901.1,0.72794335]
[1761325653558,10.5030789,3901.2,3901.1,0.37924335]
[1761325654167,10.5030789,3901.2,3901.1,0.72794335]
[1761325654460,9.7928789,3901.2,3901.1,4.46604335]
[1761325654673,9.2638789,3901.2,3901.1,4.46604335]
[1761325654960,10.1473789,3901.2,3901.1,4.46604335]
[1761325655161,10.5020789,3901.2,3901.1,3.93574335]
[1761325656067,10.5020789,3901.2,3901.1,3.21104335]
[1761325656866,10.5020789,3901.2,3901.1,3.58704335]
[1761325657264,10.5020789,3901.2,3901.1,0.00324335]
[1761325657763,10.5020789,3901.2,3899.5,0.4591]
[1761325657764,0.4668,3901.1,3899.5,0.4591]
[1761325657954,1.1419,3899.4,3899.0,0.10151962]
[1761325658156,1.1419,3899.1,3899.0,0.10151962]
[1761325658758,0.6555,3899.0,3898.9,3.572]
[1761325658956,0.4668,3899.6,3899.5,0.6789]
[1761325659156,10.4019,3899.6,3899.5,0.6789]
[1761325659362,1.1419,3899.6,3899.5,0.3642]
[1761325659566,10.4029,3899.6,3899.5,0.3642]
[1761325659758,9.9361,3899.6,3899.1,0.8233]
[1761325659964,0.8172,3899.2,3899.1,1.138]
[1761325661262,0.4668,3899.4,3899.2,0.4591]
[1761325661468,0.4668,3899.8,3899.3,0.6789]
[1761325661675,8.5008,3899.7,3899.6,1.138]
[1761325661971,8.5008,3899.7,3899.6,4.3458]
[1761325662174,8.8512,3899.7,3899.6,4.3458]
[1761325662672,9.1759,3899.7,3899.6,3.8867]
[1761325662865,9.1759,3899.7,3899.6,3.2078]
[1761325663172,9.1759,3899.7,3899.6,3.572]
[1761325663665,9.1759,3899.7,3899.6,3.2078]
[1761325664667,0.8172,3899.2,3899.1,3.8867]
[1761325664972,1.1419,3899.2,3899.1,3.572]
[1761325665471,1.1419,3899.2,3899.1,3.8867]
[1761325667569,1.1419,3899.2,3899.1,3.572]
[1761325668569,1.1419,3899.2,3899.1,3.2078]
[1761325668775,0.6751,3899.2,3898.9,0.00206783]
[1761325668976,1.3306,3899.0,3898.9,0.00206783]
[1761325673877,7.2306,3899.0,3898.9,0.00206783]
[1761325675278,7.2306,3899.0,3898.2,3.2078]
[1761325675583,1.1419,3898.3,3898.2,3.2078]
[1761325675774,10.4039,3898.3,3898.2,3.2078]
[1761325676381,10.40713521,3898.3,3898.2,3.21052628]
[1761325678278,10.40713521,3898.3,3898.2,0.00272628]
[1761325682480,10.50742112,3898.3,3898.2,0.00272628]
[1761325682791,1.0388,3897.9,3897.8,0.0256555]
[1761325682987,10.3008,3897.9,3897.8,0.0256555]
[1761325683891,10.3008,3897.9,3897.8,0.02805774]
[1761325684986,0.185,3897.0,3896.5,3.5046]
[1761325685188,0.2938,3896.2,3896.1,3.5046]
[1761325685386,10.3008,3896.2,3896.1,3.7915]
[1761325685988,10.3008,3896.2,3896.1,3.79374179]
[1761325686298,10.0102,3896.2,3896.1,3.79374179]
[1761325686491,3.2078,3897.3,3896.1,3.79374179]
[1761325686492,1.0388,3897.4,3897.3,0.5837]
[1761325686791,1.2238,3897.0,3896.9,0.2968]
[1761325686993,10.4858,3897.0,3896.9,0.5837]
[1761325687682,1.2238,3897.0,3896.9,0.5837]
[1761325687882,10.4858,3897.0,3896.9,0.5837]
[1761325688096,1.2238,3897.0,3896.9,0.5837]
[1761325688392,10.4858,3897.0,3896.9,0.5837]
[1761325688784,10.4868,3897.0,3896.9,0.5837]
[1761325689683,10.4868,3897.0,3896.9,0.2968]
[1761325690093,0.995,3896.7,3896.6,0.2818]
[1761325690283,0.1744,3896.5,3896.2,3.4896]
[1761325690488,0.995,3896.3,3896.2,3.4896]
[1761325691094,0.995,3896.3,3896.2,3.2078]
[1761325691299,0.995,3896.3,3896.2,3.4896]
[1761325692097,0.995,3896.3,3896.2,4.2058]
[1761325692297,0.4115,3896.3,3896.2,4.2058]
[1761325692793,9.263,3896.3,3896.2,4.2058]
[1761325693991,9.6745,3896.3,3896.2,4.2058]
[1761325694395,9.978,3896.3,3896.2,4.2058]
[1761325694903,9.263,3896.3,3896.2,4.2058]
[1761325695101,10.258,3896.3,3896.2,3.7615]
[1761325697010,10.258,3896.3,3896.2,3.4896]
[1761325698205,10.258,3896.3,3896.2,3.2078]
[1761325698411,10.258,3896.3,3896.1,0.00224179]
[1761325698412,9.8465,3896.3,3896.1,0.00224179]
[1761325698608,0.995,3896.2,3896.1,0.00224179]
[1761325698805,0.995,3896.2,3894.8,0.4443]
[1761325698806,0.1744,3895.5,3895.0,3.4896]
[1761325699003,0.995,3895.1,3895.0,3.4896]
[1761325699202,10.258,3895.1,3895.0,3.4896]
[1761325699504,10.258,3895.1,3895.0,3.2078]
[1761325699911,10.26057894,3895.1,3895.0,3.49222022]
[1761325701202,10.26057894,3895.1,3895.0,3.21042022]
[1761325701408,10.26057894,3895.1,3895.0,0.00262022]
[1761325701609,10.26057894,3895.1,3895.0,0.28442022]
[1761325701805,10.26057894,3895.1,3895.0,0.00262022]
[1761325702909,0.71757894,3895.1,3895.0,4.67050022]
[1761325703108,9.67707894,3895.1,3895.0,4.67050022]
[1761325703309,9.98057894,3895.1,3895.0,4.67050022]
[1761325703508,0.71757894,3895.1,3895.0,4.67050022]
[1761325703710,0.41407894,3895.1,3895.0,4.67050022]
[1761325704207,0.00257894,3895.1,3895.0,4.67050022]
[1761325706510,0.71757894,3895.1,3895.0,4.20842022]
[1761325706810,0.99757894,3895.1,3895.0,3.49222022]
[1761325707014,0.99757894,3895.1,3895.0,3.21042022]
[1761325707216,0.99757894,3895.1,3895.0,0.00262022]
[1761325708104,4.20537894,3895.1,3895.0,0.00262022]
[1761325708508,9.20537894,3895.1,3895.0,0.00262022]
[1761325708704,0.715,3894.0,3893.9,0.998]
[1761325709107,0.715,3894.0,3893.8,3.2078]
[1761325709108,0.4115,3893.9,3893.8,3.2078]
[1761325709306,0.4115,3893.9,3893.3,3.4896]
[1761325709307,0.4115,3893.8,3893.3,3.4896]
[1761325709508,0.4115,3893.9,3893.3,4.2058]
[1761325709716,1.1694,3893.5,3893.4,0.5537]
[1761325710209,1.1694,3893.5,3893.3,3.49261099]
[1761325710210,0.715,3893.4,3893.3,3.49261099]
[1761325710410,0.995,3893.4,3893.3,3.49261099]
[1761325710612,0.995,3893.4,3893.3,3.21081099]
[1761325711415,0.995,3893.4,3893.3,0.00301099]
[1761325715916,0.995,3892.6,3892.5,3.2078]
[1761325716116,10.26,3892.6,3892.5,3.2078]
[1761325716816,10.26,3892.6,3892.5,3.4896]
[1761325717017,10.26,3892.6,3892.5,4.2058]
[1761325717018,0.995,3892.6,3892.5,4.2058]
[1761325717221,9.98,3892.6,3892.5,4.20803234]
[1761325718119,9.98,3892.6,3892.5,3.76373234]
[1761325718512,10.2416,3892.6,3892.5,3.76373234]
[1761325720012,10.2416,3892.6,3892.5,3.21003234]
[1761325720209,23.41289488,3894.0,3893.9,0.5589]
[1761325720210,0.1744,3894.0,3893.9,0.5589]
[1761325720516,0.5393,3893.6,3893.5,0.2998]
[1761325720720,0.5338,3893.5,3893.1,3.6031]
[1761325721014,9.266,3893.5,3893.4,0.5589]
[1761325721416,9.266,3893.5,3893.4,1.02117]
[1761325721618,0.656,3894.4,3894.3,0.2998]
[1761325721819,10.1836,3894.4,3894.3,0.2998]
[1761325722712,10.1836,3894.4,3893.5,0.0825]
[1761325722921,0.656,3893.7,3893.6,4.162]
[1761325723119,0.656,3893.7,3893.6,3.7667]
[1761325723120,0.9176,3893.7,3893.6,3.7667]
[1761325723314,0.9176,3893.7,3893.6,3.2078]
[1761325723724,0.9176,3893.7,3893.6,3.5076]
[1761325724417,0.9176,3893.7,3893.6,3.2078]
[1761325725516,10.1836,3893.7,3893.6,3.5076]
[1761325726120,10.1836,3893.7,3893.6,0.2998]
[1761325727125,0.9176,3893.7,3893.6,0.2998]
[1761325728025,9.7786,3893.7,3893.6,0.2998]
[1761325728926,9.7786,3893.7,3893.6,0.5589]
[1761325729124,0.3783,3893.7,3893.6,4.162]
[1761325729320,0.656,3893.7,3893.6,3.7667]
[1761325729821,0.9176,3893.7,3893.6,3.7667]
[1761325730020,0.5393,3893.7,3893.3,0.2998]
[1761325730226,0.5393,3893.7,3892.5,0.05613234]
[1761325730227,0.9176,3892.6,3892.5,0.30203234]
[1761325730425,10.1836,3892.6,3892.5,0.00223234]
[1761325730924,16.0836,3892.6,3892.5,0.00223234]
[1761325733318,0.656,3891.7,3891.6,3.7667]
[1761325733526,9.922,3891.7,3891.6,3.7667]
[1761325734230,9.922,3891.7,3891.6,4.162]
[1761325734433,0.00226142,3891.7,3891.6,4.16455892]
[1761325734731,0.00226142,3891.7,3891.6,4.85011234]
[1761325734920,0.00226142,3891.7,3891.6,4.16455892]
[1761325735119,0.00226142,3891.7,3891.6,4.85011234]
[1761325736128,0.00226142,3891.7,3891.6,4.16455892]
[1761325737824,0.00226142,3891.7,3891.6,10.07776259]
[1761325738025,0.8582,3892.9,3892.8,0.2468]
[1761325738224,0.8582,3892.6,3892.5,0.4873]
[1761325739031,0.86028491,3892.6,3892.5,0.4873]
[1761325740635,0.86028491,3892.6,3892.5,0.8332]
[1761325741336,0.86028491,3892.6,3892.5,0.4873]
[1761325741834,0.00208491,3892.6,3892.5,1.29557]
[1761325742136,0.00208491,3892.6,3892.5,1.34947]
[1761325742635,0.37868491,3892.6,3892.5,1.29557]
[1761325742826,0.00208491,3892.6,3892.5,1.29557]
[1761325743526,0.00208491,3892.6,3892.5,1.34947]
[1761325744035,0.00208491,3892.6,3892.5,6.34947]
[1761325746634,0.00208491,3892.6,3892.5,5.8871]
[1761325746834,0.37868491,3892.6,3892.5,1.29557]
[1761325747034,0.37868491,3892.6,3892.5,1.98289054]
[1761325747538,0.37868491,3892.6,3892.5,1.29557]
[1761325748736,0.46448491,3892.6,3892.4,0.68739254]
[1761325749040,0.8123,3892.4,3892.3,3.2078]
[1761325749827,0.6109,3892.0,3891.9,3.4513]
[1761325750028,0.958,3892.0,3891.9,0.2435]
[1761325750237,0.8123,3891.7,3891.6,0.00255892]
[1761325751341,10.0783,3891.7,3891.6,0.00255892]
[1761325751841,0.2346,3890.7,3890.6,4.84519254]
[1761325752036,0.5817,3890.7,3890.6,5.16299254]
[1761325752236,0.8123,3890.7,3890.6,3.2078]
[1761325752434,0.1457,3891.0,3890.9,0.4874]
[1761325752435,0.3471,3891.0,3890.9,0.4874]
[1761325752629,0.6109,3891.5,3891.4,0.2435]
[1761325752841,0.6109,3891.5,3891.4,0.00197019]
[1761325753146,0.958,3891.5,3891.4,0.00197019]
[1761325753743,10.224,3891.5,3891.4,0.00197019]
[1761325756540,0.5817,3890.6,3890.5,3.4513]
[1761325756744,0.8123,3890.4,3890.1,3.2078]
[1761325756950,0.8123,3890.2,3890.1,3.2078]
[1761325757148,0.8123,3890.2,3890.1,3.4513]
[1761325757346,0.3471,3890.2,3890.1,3.6984819]
[1761325758542,0.8123,3890.2,3890.1,3.2110819]
[1761325758938,0.8123,3890.2,3890.1,3.6984819]
[1761325759147,9.267,3890.2,3890.1,4.0162819]
[1761325759338,0.5817,3890.4,3890.1,3.6984819]
[1761325759550,0.5817,3890.4,3890.3,0.4874]
[1761325759837,9.8497,3890.4,3890.3,0.4874]
[1761325760453,10.0803,3890.4,3890.3,0.2435]
[1761325760932,0.8123,3890.2,3890.1,3.6984819]
[1761325761136,0.5817,3890.2,3890.1,3.6984819]
[1761325761545,0.8123,3890.2,3890.1,3.6984819]
[1761325762536,0.5817,3890.2,3890.1,4.0162819]
[1761325762948,0.4652,3890.8,3890.7,0.2435]
[1761325763146,5.6142,3890.8,3890.7,0.2435]
[1761325763538,0.3471,3890.7,3890.2,0.78044]
[1761325763939,0.5817,3890.4,3890.3,0.4874]
[1761325764141,0.8123,3890.4,3890.3,3.6952]
[1761325765948,0.5817,3890.4,3890.3,4.013]
[1761325766253,0.5817,3890.4,3890.3,3.6952]
[1761325766441,0.8123,3890.4,3890.3,0.2435]
[1761325766648,0.8123,3890.2,3890.1,0.0032819]
[1761325766852,10.0813,3890.2,3890.1,0.0032819]
[1761325767050,0.7274,3889.5,3889.4,0.2435]
[1761325767247,0.7274,3889.5,3888.4,0.2435]
[1761325767248,0.1457,3888.5,3888.4,0.2435]
[1761325767441,0.7274,3888.5,3888.4,0.4874]
[1761325767641,0.7274,3888.5,3887.5,3.97769254]
[1761325767642,0.6109,3888.5,3887.7,0.46294]
[1761325767840,0.6109,3888.5,3887.6,3.2078]
[1761325767841,0.3471,3888.3,3887.8,0.3178]
[1761325768045,0.3471,3888.3,3887.8,0.00202011]
[1761325768046,0.8123,3887.9,3887.8,0.00202011]
[1761325768247,0.8123,3887.9,3887.8,0.24552011]
[1761325768447,0.8123,3887.9,3887.8,0.00202011]
[1761325771255,0.3471,3887.8,3887.2,3.4513]
[1761325771550,3.3535,3888.0,3887.5,0.2435]
[1761325771551,0.4652,3887.6,3887.5,0.2435]
[1761325771748,0.3803,3887.5,3887.2,3.7691]
[1761325771951,0.3471,3887.4,3887.3,0.2439]
[1761325772152,0.1457,3887.5,3887.3,0.4874]
[1761325772451,3.3535,3888.0,3887.3,0.4874]
[1761325772452,0.3471,3887.8,3887.4,0.46297]
[1761325772650,0.2346,3887.7,3887.6,3.4513]
[1761325772859,0.5817,3887.7,3887.6,3.6952]
[1761325773072,0.5817,3887.7,3887.6,4.013]
[1761325773458,0.5817,3887.7,3887.6,3.6952]
[1761325773958,0.8123,3887.7,3887.6,3.2078]
[1761325774158,0.8123,3887.7,3887.6,3.4513]
[1761325774354,0.1457,3888.0,3887.7,1.26815]
[1761325774355,9.273,3887.8,3887.7,1.26815]
[1761325774660,9.6201,3887.8,3887.7,1.26815]
[1761325774858,0.3471,3887.8,3887.7,1.26815]
[1761325775058,0.5817,3887.8,3887.7,0.95035]
[1761325775254,0.3471,3888.7,3888.2,0.8052]
[1761325775461,0.3471,3888.7,3888.2,9.013]
[1761325775956,0.3471,3889.1,3888.2,9.013]
[1761325776262,2.235,3889.0,3888.2,9.013]
[1761325776659,4.5451,3889.1,3888.2,9.013]
[1761325777262,0.3471,3889.1,3888.2,9.013]
[1761325777459,0.343,3889.4,3889.1,0.2848]
[1761325777764,0.343,3889.4,3889.1,3.2078]
[1761325778368,0.34500112,3889.4,3889.1,3.2078]
[1761325778665,0.34500112,3889.4,3889.1,3.67058]
[1761325779159,0.34500112,3889.4,3889.1,3.95538]
[1761325779358,0.34500112,3889.4,3889.1,3.2078]
[1761325780258,0.2332,3889.2,3889.1,3.2078]
[1761325780462,0.7995,3889.2,3889.1,3.4443]
[1761325782166,0.7995,3889.2,3889.1,0.2365]
[1761325782762,0.00200112,3889.4,3889.1,0.2365]
[1761325782763,9.61800112,3889.4,3889.3,0.7575]
[1761325782953,9.85120112,3889.4,3889.3,0.4727]
[1761325783163,10.07450112,3889.4,3889.3,0.4727]
[1761325785465,10.07450112,3889.4,3888.6,0.2848]
[1761325785466,13.28230112,3889.4,3888.6,0.2848]
[1761325785676,13.28230112,3889.4,3887.9,3.89519254]
[1761325785677,0.1305,3888.0,3887.9,3.89519254]
[1761325785862,0.1305,3887.5,3887.3,0.00316275]
[1761325786060,0.343,3887.4,3887.3,0.00316275]
[1761325787564,3.5508,3887.4,3887.3,0.00316275]
[1761325787768,12.8238,3887.4,3887.3,0.00316275]
[1761325787967,0.343,3886.1,3885.2,0.91674546]
[1761325788179,0.343,3883.7,3883.5,2.10572013]
[1761325788364,3.2078,3884.0,3883.6,0.1941]
[1761325788769,3.2078,3884.0,3883.1,3.2078]
[1761325788770,0.343,3883.9,3883.2,0.1941]
[1761325788970,0.343,3883.9,3883.2,0.00261752]
[1761325788971,0.343,3883.4,3883.2,0.00261752]
[1761325789172,3.20972388,3883.9,3883.5,0.1941]
[1761325789377,0.343,3883.8,3883.5,0.1941]
[1761325790173,0.343,3883.8,3883.2,0.46609752]
[1761325790375,0.343,3883.4,3883.2,0.00261752]
[1761325790571,0.00192388,3883.9,3883.2,0.00261752]
[1761325790572,3.20972388,3883.9,3883.2,0.00261752]
[1761325790880,0.343,3883.8,3883.2,0.00261752]
[1761325791195,3.20972388,3883.9,3883.2,0.00261752]
[1761325791196,0.343,3883.4,3883.2,0.00261752]
[1761325791375,3.2078,3883.5,3883.3,0.1941]
[1761325791576,3.20972388,3883.9,3883.4,0.1941]
[1761325791775,0.343,3883.8,3883.4,0.1941]
[1761325791975,0.343,3883.8,3883.2,0.00261752]
[1761325792177,3.20972388,3883.9,3883.2,0.00261752]
[1761325792178,3.2078,3883.3,3883.2,0.00261752]
[1761325792379,3.5508,3883.3,3883.2,0.00261752]
[1761325792686,3.2078,3883.7,3883.2,5.00261752]
[1761325792885,3.2078,3883.7,3883.4,0.46345]
[1761325793079,3.2078,3883.7,3883.2,0.00261752]
[1761325793080,0.00192388,3883.9,3883.8,0.46341]
[1761325793276,0.00192388,3883.9,3883.8,0.65751]
[1761325793585,0.00192388,3883.9,3883.8,5.65751]
[1761325796977,3.2078,3884.2,3884.1,0.46337]
[1761325797176,6.176,3885.5,3884.3,0.46335]
[1761325797177,0.5513,3884.6,3884.3,0.46335]
[1761325797377,3.2078,3884.7,3884.6,1.03701]
[1761325797987,3.76188814,3884.7,3884.6,0.46331]
[1761325798479,3.76188814,3884.7,3884.2,9.412]
[1761325798480,3.21058814,3884.7,3884.2,9.412]
[1761325798687,0.5513,3884.6,3884.2,9.412]
[1761325798886,0.5513,3884.6,3884.3,1.03704]
[1761325799079,3.21058814,3884.7,3884.6,0.46331]
[1761325799277,3.21058814,3884.7,3884.6,1.03701]
[1761325799474,3.21058814,3884.7,3884.6,6.03701]
[1761325801288,0.5513,3886.3,3885.1,0.5737]
[1761325801479,0.5513,3887.0,3885.9,1.03686]
[1761325801680,0.5513,3886.8,3885.9,1.03686]
[1761325801887,0.5513,3886.8,3886.0,0.46315]
[1761325802289,0.55371625,3886.8,3886.0,0.0027925]
[1761325803379,0.55371625,3886.8,3886.0,0.4659325]
[1761325803588,0.55371625,3886.8,3886.2,1.03682]
[1761325803989,0.55371625,3886.8,3886.3,0.46311]
[1761325804183,0.55371625,3886.8,3886.5,0.5737]
[1761325804393,0.55371625,3886.8,3886.0,0.0027925]
[1761325804394,0.00241625,3886.8,3886.7,0.5737]
[1761325805588,0.2238,3887.8,3886.7,5.0]
[1761325805791,0.5513,3888.4,3887.6,0.5737]
[1761325805991,0.5513,3888.4,3887.8,0.46293]
[1761325806196,0.5513,3888.4,3887.2,0.5737]
[1761325806492,0.5513,3888.4,3886.0,0.0027925]
[1761325806493,0.5513,3888.4,3886.6,0.46307]
[1761325806695,0.55457786,3888.4,3886.7,1.4967]
[1761325807089,0.55457786,3888.4,3886.9,0.46304]
[1761325807585,0.55457786,3888.4,3887.0,0.46303]
[1761325807781,0.55457786,3888.4,3886.8,0.5737]
[1761325807983,0.55457786,3888.4,3886.0,0.0027925]
[1761325807984,0.6168,3888.3,3886.3,0.6284]
[1761325809991,1.1,3888.2,3886.3,0.6284]
[1761325810298,0.6168,3888.1,3886.3,0.6284]
[1761325810596,0.6168,3888.1,3886.0,0.0027925]
[1761325810796,1.53541191,3888.1,3886.0,0.0027925]
[1761325811101,0.6168,3888.0,3886.0,0.0027925]
[1761325811290,0.6168,3887.7,3886.0,0.0027925]
[1761325811796,0.6168,3887.5,3886.0,0.0027925]
[1761325811996,0.6168,3886.3,3886.0,0.0027925]
[1761325815893,0.2422,3886.4,3884.6,0.6284]
[1761325815894,0.6168,3886.1,3884.6,0.6284]
[1761325816085,0.6168,3886.0,3883.9,0.6284]
[1761325816294,0.6168,3885.9,3884.2,0.6284]
[1761325816589,0.6168,3885.5,3883.9,0.46339]
[1761325816891,0.61890649,3885.5,3884.0,0.6284]
[1761325817088,0.61890649,3885.5,3884.0,1.09179]
[1761325817291,0.61890649,3885.5,3884.1,0.6284]
[1761325817498,0.6168,3885.2,3884.1,0.6284]
[1761325817693,0.6168,3885.1,3883.9,0.6306508]
[1761325817887,0.6168,3884.2,3883.9,0.0022508]
[1761325818096,1.1,3884.2,3883.9,0.0022508]
[1761325818290,0.6168,3884.1,3883.9,0.0022508]
[1761325821792,0.6168,3884.0,3882.8,0.02575461]
[1761325821991,0.859,3882.9,3882.8,0.02575461]
[1761325822803,0.859,3882.9,3882.8,0.02840483]
[1761325824200,0.6168,3882.8,3881.3,0.6284]
[1761325824509,0.6168,3882.8,3881.6,0.6284]
[1761325824703,0.6168,3882.8,3882.3,0.46359]
[1761325825006,0.6168,3883.2,3882.6,0.6284]
[1761325825196,0.6168,3883.2,3882.6,0.63021837]
[1761325825497,0.6168,3882.8,3882.6,0.00181837]
[1761325826404,1.1,3883.5,3882.6,0.63021837]
[1761325826602,0.6168,3883.4,3882.6,0.00181837]
[1761325826800,0.6168,3883.8,3883.2,1.09187]
[1761325827002,0.6168,3883.8,3883.2,0.6284]
[1761325827200,0.6168,3883.8,3883.5,0.46344]
[1761325827399,0.6168,3883.8,3883.6,0.6284]
[1761325828705,0.2422,3884.3,3883.6,0.6284]
[1761325828706,0.859,3884.3,3883.6,0.6284]
[1761325829002,0.6168,3884.8,3883.9,0.46339]
[1761325829214,0.6168,3884.8,3884.0,0.6284]
[1761325829701,0.6168,3884.8,3883.6,0.46343]
[1761325830091,0.6168,3884.8,3883.6,0.6284]
[1761325830493,0.6168,3884.8,3883.7,0.46342]
[1761325830710,0.6168,3884.8,3883.8,0.6284]
[1761325831399,0.6168,3884.8,3883.8,1.09181]
[1761325831699,0.6168,3884.8,3884.1,0.46337]
[1761325832203,0.6168,3884.8,3884.3,0.46335]
[1761325832403,0.6168,3884.8,3884.6,0.4633]
[1761325832598,0.6168,3885.3,3884.8,0.46329]
[1761325832804,0.6168,3885.3,3884.9,0.6284]
[1761325832995,0.6168,3885.3,3884.5,0.6284]
[1761325833193,0.6168,3885.3,3884.9,0.6284]
[1761325833895,0.6168,3885.3,3884.4,0.7399]
[1761325834106,0.6168,3885.3,3884.5,0.46332]
[1761325834428,0.6168,3885.3,3884.4,0.6284]
[1761325835106,0.6168,3885.3,3884.6,0.46331]
[1761325835409,0.6168,3885.3,3884.4,1.09173]
[1761325835705,0.6168,3885.3,3884.9,0.6284]
[1761325837001,0.6168,3885.3,3884.9,1.09167]
[1761325837302,0.6168,3885.3,3884.9,0.6284]
[1761325838407,0.6168,3885.3,3885.0,0.6283]
[1761325838606,0.6168,3885.3,3885.1,0.6283]
[1761325839007,0.6168,3885.3,3885.1,1.09155]
[1761325839210,0.63600649,3885.5,3885.3,0.46323]
[1761325839411,0.63600649,3885.5,3884.4,1.26983]
[1761325839607,0.63600649,3885.5,3884.9,0.46328]
[1761325839906,0.63600649,3885.5,3884.5,0.6283]
[1761325840109,0.63600649,3885.5,3884.7,0.4633]
[1761325840313,0.63600649,3885.5,3884.6,0.46331]
[1761325840606,0.63600649,3885.5,3884.7,0.4633]
[1761325840805,0.63600649,3885.5,3884.8,0.46329]
[1761325841014,0.6339,3885.0,3884.8,1.09159]
[1761325841495,0.6339,3885.0,3884.8,0.46329]
[1761325841711,0.6339,3884.9,3884.2,0.46336]
[1761325841908,0.6339,3884.9,3884.3,0.46335]
[1761325842699,0.6339,3884.9,3883.7,1.15854]
[1761325842902,0.6339,3884.9,3884.7,0.6283]
[1761325843316,0.6339,3884.9,3884.8,0.6283]
[1761325843712,0.6339,3884.9,3884.5,0.46331]
[1761325844206,0.6339,3884.9,3884.6,0.46331]
[1761325844405,0.6339,3884.9,3884.1,0.6283]
[1761325844713,0.6339,3884.9,3884.2,0.46336]
[1761325845614,0.6339,3884.9,3884.3,0.46335]
[1761325846110,0.6339,3884.9,3884.5,0.6283]
[1761325846414,0.6339,3884.9,3883.8,0.2289]
[1761325846415,0.6339,3884.9,3884.6,1.0916]
[1761325846615,0.6339,3884.9,3884.6,0.4633]
[1761325847012,0.6339,3884.9,3883.5,0.6283]
[1761325847205,0.6339,3884.8,3883.5,0.6283]
[1761325848019,0.6339,3884.8,3883.6,0.46343]
[1761325848716,0.6339,3884.8,3883.5,0.6283]
[1761325848717,0.6339,3884.7,3883.5,0.6283]
[1761325848906,0.6339,3884.6,3883.5,0.6283]
[1761325849513,0.6339,3884.6,3883.3,0.46347]
[1761325849717,0.6339,3884.6,3883.4,0.46346]
[1761325849910,0.6339,3884.6,3882.9,0.91872754]
[1761325849911,0.6339,3884.6,3883.3,0.6283]
[1761325850117,0.6339,3884.6,3884.1,0.46337]
[1761325850416,0.6339,3884.6,3884.2,0.6283]
[1761325850618,0.6339,3884.6,3883.8,0.8572]
[1761325850917,0.6339,3884.6,3883.8,0.6283]
[1761325851117,0.6339,3884.6,3884.1,0.46337]
[1761325851316,0.6339,3884.6,3884.2,0.6283]
[1761325852208,0.6339,3884.6,3884.0,0.46338]
[1761325853311,0.6339,3884.6,3883.8,0.2289]
[1761325853515,0.6339,3884.6,3883.9,0.6283]
[1761325853815,0.6339,3884.4,3884.1,0.6283]
[1761325854019,0.2581,3885.0,3883.8,0.2289]
[1761325854020,0.6339,3884.8,3884.6,0.6283]
[1761325854312,0.6339,3884.8,3884.5,0.6283]
[1761325854711,0.6339,3884.8,3884.0,0.6283]
[1761325854924,0.6339,3884.8,3884.1,0.46337]
[1761325855111,0.6339,3884.8,3884.1,1.09167]
[1761325855811,0.6339,3884.8,3884.2,0.46336]
[1761325856815,0.6339,3884.8,3883.9,0.68982754]
[1761325856816,0.6339,3884.8,3883.9,0.4634]
[1761325857123,0.6339,3884.8,3884.0,0.46338]
[1761325857714,0.6339,3884.8,3884.2,0.46336]
[1761325857915,0.976,3884.2,3884.1,0.9813]
[1761325858219,1.3517,3883.9,3883.8,0.4013]
[1761325860519,0.5804,3883.8,3883.5,0.46344]
[1761325860714,0.976,3883.6,3883.5,0.4013]
[1761325860918,0.976,3883.6,3883.2,0.4013]
[1761325860919,0.8217,3883.5,3883.2,0.4013]
[1761325861223,0.8217,3883.5,3883.1,1.26982754]
[1761325861224,0.5804,3882.8,3882.7,2.51796754]
[1761325861428,0.976,3882.8,3882.7,2.51796754]
[1761325861613,0.5804,3883.8,3883.6,0.46343]
[1761325861812,1.2173,3884.0,3883.9,0.7846]
[1761325862011,1.593,3884.0,3883.6,0.46343]
[1761325862312,1.3517,3883.7,3883.6,0.86473]
[1761325862727,1.3517,3883.7,3883.6,1.24803]
[1761325863924,0.976,3883.7,3883.6,0.7846]
[1761325864128,1.3517,3883.7,3883.6,0.7846]
[1761325866521,1.3517,3883.7,3883.1,0.69205687]
[1761325866522,0.2413,3883.5,3883.1,0.69205687]
[1761325866829,1.3517,3882.8,3882.7,0.4013]
[1761325867031,1.3517,3882.8,3882.1,1.36315088]
[1761325867032,1.3517,3882.7,3882.2,0.69205687]
[1761325867323,0.5804,3882.7,3881.8,1.15570687]
[1761325867626,0.5881,3881.9,3881.4,1.05749]
[1761325868019,0.5881,3881.9,3881.4,0.5938]
[1761325868225,0.5881,3881.9,3881.1,0.46373]
[1761325868523,0.59112068,3881.9,3881.1,0.00287488]
[1761325869125,0.59112068,3881.9,3881.1,0.59667488]
[1761325869326,0.59112068,3881.9,3881.1,1.06040488]
[1761325869823,0.59112068,3881.9,3881.2,0.46372]
[1761325870222,0.5881,3881.3,3881.1,0.00287488]
[1761325870928,0.5881,3881.3,3880.1,0.69071793]
[1761325871134,0.5881,3881.3,3879.9,0.5938]
[1761325871328,0.5881,3881.3,3880.4,0.46381]